[Event "Titled Tuesday Blitz November 01 Early 2022"]
[White "Rustemov, Alexander"]
[Black "Orozbaev, Eldiar"]
[WhiteFideId "4119002"]
[BlackFideId "13802240"]
[WhiteElo "2926"]
[BlackElo "2244"]
[Result "0-1"]
[Round "10"]
[TimeControl "180+1"]
[Date "2022.11.01"]
[WhiteClock "0:00:03"]
[BlackClock "0:00:25"]

1. d4 {[%clk 0:03:00]}  Nf6 {[%clk 0:02:59]} 2. c4 {[%clk 0:03:01]}  e6 {[%clk 0:02:58]} 3. Nf3 {[%clk 0:03:01]}  d5 {[%clk 0:02:58]} 4. Nc3 {[%clk 0:03:01]}  Be7 {[%clk 0:02:56]} 5. Bg5 {[%clk 0:03:00]}  c6 {[%clk 0:02:54]} 6. e3 {[%clk 0:03:00]}  O-O {[%clk 0:02:54]} 7. Qc2 {[%clk 0:03:00]}  h6 {[%clk 0:02:53]} 8. Bh4 {[%clk 0:03:00]}  b6 {[%clk 0:02:51]} 9. Bd3 {[%clk 0:02:55]}  Bb7 {[%clk 0:02:49]} 10. O-O {[%clk 0:02:54]}  Na6 {[%clk 0:02:49]} 11. a3 {[%clk 0:02:47]}  Rc8 {[%clk 0:02:48]} 12. Qe2 {[%clk 0:02:44]}  Nc7 {[%clk 0:02:47]} 13. Rfd1 {[%clk 0:02:40]}  dxc4 {[%clk 0:02:30]} 14. Bxc4 {[%clk 0:02:40]}  Nfd5 {[%clk 0:02:31]} 15. Bxe7 {[%clk 0:02:34]}  Qxe7 {[%clk 0:02:31]} 16. Rac1 {[%clk 0:02:31]}  Rfd8 {[%clk 0:02:30]} 17. Ne4 {[%clk 0:02:26]}  Ne8 {[%clk 0:02:25]} 18. Ne5 {[%clk 0:02:20]}  Nd6 {[%clk 0:02:23]} 19. Bd3 {[%clk 0:02:15]}  Nxe4 {[%clk 0:02:19]} 20. Bxe4 {[%clk 0:02:15]}  c5 {[%clk 0:02:19]} 21. dxc5 {[%clk 0:02:07]}  Rxc5 {[%clk 0:02:19]} 22. Rxc5 {[%clk 0:01:44]}  Qxc5 {[%clk 0:02:20]} 23. Qf3 {[%clk 0:01:41]}  Qc7 {[%clk 0:02:09]} 24. Nd3 {[%clk 0:01:22]}  f5 {[%clk 0:01:54]} 25. Bxd5 {[%clk 0:01:16]}  Rxd5 {[%clk 0:01:55]} 26. e4 {[%clk 0:00:41]}  Rd8 {[%clk 0:01:45]} 27. Qe2 {[%clk 0:00:37]}  Bxe4 {[%clk 0:01:43]} 28. Ne1 {[%clk 0:00:37]}  Bd5 {[%clk 0:01:40]} 29. h3 {[%clk 0:00:33]}  Rc8 {[%clk 0:01:40]} 30. Rd2 {[%clk 0:00:27]}  Qc4 {[%clk 0:01:37]} 31. Nd3 {[%clk 0:00:25]}  Qd4 {[%clk 0:01:19]} 32. Qe5 {[%clk 0:00:20]}  Rc1+ {[%clk 0:01:06]} 33. Kh2 {[%clk 0:00:20]}  Qxe5+ {[%clk 0:01:04]} 34. Nxe5 {[%clk 0:00:21]}  Kf8 {[%clk 0:01:01]} 35. f4 {[%clk 0:00:20]}  Ke7 {[%clk 0:00:58]} 36. h4 {[%clk 0:00:20]}  a5 {[%clk 0:00:52]} 37. Kg3 {[%clk 0:00:21]}  b5 {[%clk 0:00:49]} 38. Kf2 {[%clk 0:00:21]}  b4 {[%clk 0:00:49]} 39. axb4 {[%clk 0:00:21]}  axb4 {[%clk 0:00:50]} 40. Ke3 {[%clk 0:00:21]}  b3 {[%clk 0:00:49]} 41. g3 {[%clk 0:00:21]}  Rg1 {[%clk 0:00:47]} 42. Kd4 {[%clk 0:00:15]}  Rxg3 {[%clk 0:00:46]} 43. Rd1 {[%clk 0:00:15]}  g5 {[%clk 0:00:45]} 44. hxg5 {[%clk 0:00:12]}  hxg5 {[%clk 0:00:46]} 45. fxg5 {[%clk 0:00:13]}  Rxg5 {[%clk 0:00:45]} 46. Ra1 {[%clk 0:00:13]}  Rg2 {[%clk 0:00:43]} 47. Ra7+ {[%clk 0:00:14]}  Kf8 {[%clk 0:00:42]} 48. Nd7+ {[%clk 0:00:13]}  Kg7 {[%clk 0:00:39]} 49. Ne5+ {[%clk 0:00:07]}  Kh6 {[%clk 0:00:37]} 50. Nd3 {[%clk 0:00:06]}  Rg4+ {[%clk 0:00:31]} 51. Ke5 {[%clk 0:00:03]}  Re4+ {[%clk 0:00:29]} 52. Kf6 {[%clk 0:00:03]}  f4 {[%clk 0:00:30]} 53. Ne5 {[%clk 0:00:03]}  f3 {[%clk 0:00:25]} 54. Ng4+ {[%clk 0:00:04]}  Rxg4 {[%clk 0:00:24]} 55. Ra8 {[%clk 0:00:03]}  Rf4+ {[%clk 0:00:23]} 56. Ke5 {[%clk 0:00:03]}  Rf5+ {[%clk 0:00:24]} 57. Kd4 {[%clk 0:00:03]}  f2 {[%clk 0:00:25]} 58. Rh8+ {[%clk 0:00:03]}  Kg7 {[%clk 0:00:25]} 0-1


[Site "https://www.chess.com"]

[Event "Titled Tuesday Blitz November 01 Early 2022"]
[White "Sarana, Alexey"]
[Black "Dubov, Daniil"]
[WhiteFideId "24133795"]
[BlackFideId "24126055"]
[WhiteElo "2689"]
[BlackElo "2791"]
[Result "1-0"]
[Round "10"]
[TimeControl "180+1"]
[Date "2022.11.01"]
[WhiteClock "0:00:20"]
[BlackClock "0:00:03"]

1. c4 {[%clk 0:03:00]}  Nf6 {[%clk 0:02:59]} 2. Nc3 {[%clk 0:03:01]}  e5 {[%clk 0:02:56]} 3. Nf3 {[%clk 0:03:00]}  Nc6 {[%clk 0:02:56]} 4. g3 {[%clk 0:03:01]}  d5 {[%clk 0:02:55]} 5. cxd5 {[%clk 0:03:02]}  Nxd5 {[%clk 0:02:55]} 6. Bg2 {[%clk 0:03:03]}  Nxc3 {[%clk 0:02:56]} 7. bxc3 {[%clk 0:03:02]}  Bc5 {[%clk 0:02:57]} 8. O-O {[%clk 0:02:59]}  O-O {[%clk 0:02:57]} 9. e3 {[%clk 0:02:58]}  Qd3 {[%clk 0:02:54]} 10. Ne1 {[%clk 0:02:53]}  Qg6 {[%clk 0:02:54]} 11. d4 {[%clk 0:02:52]}  Bd6 {[%clk 0:02:54]} 12. Qc2 {[%clk 0:02:40]}  Qf6 {[%clk 0:02:20]} 13. Nd3 {[%clk 0:02:36]}  h5 {[%clk 0:02:11]} 14. Rb1 {[%clk 0:02:26]}  h4 {[%clk 0:02:09]} 15. d5 {[%clk 0:01:43]}  Ne7 {[%clk 0:02:04]} 16. e4 {[%clk 0:01:43]}  Qg6 {[%clk 0:01:51]} 17. c4 {[%clk 0:01:28]}  c5 {[%clk 0:01:40]} 18. f4 {[%clk 0:01:15]}  exf4 {[%clk 0:01:27]} 19. Bxf4 {[%clk 0:01:15]}  Bxf4 {[%clk 0:01:14]} 20. Nxf4 {[%clk 0:01:14]}  Qg5 {[%clk 0:01:14]} 21. Qf2 {[%clk 0:01:09]}  hxg3 {[%clk 0:01:13]} 22. Qxg3 {[%clk 0:01:08]}  Qxg3 {[%clk 0:01:08]} 23. hxg3 {[%clk 0:01:08]}  f6 {[%clk 0:01:08]} 24. e5 {[%clk 0:00:45]}  fxe5 {[%clk 0:00:55]} 25. Nd3 {[%clk 0:00:46]}  Bf5 {[%clk 0:00:42]} 26. Rfd1 {[%clk 0:00:34]}  Rab8 {[%clk 0:00:33]} 27. d6 {[%clk 0:00:28]}  Ng6 {[%clk 0:00:32]} 28. Rxb7 {[%clk 0:00:24]}  Rbc8 {[%clk 0:00:08]} 29. Bd5+ {[%clk 0:00:22]}  Kh7 {[%clk 0:00:08]} 30. Kg2 {[%clk 0:00:22]}  Kh6 {[%clk 0:00:08]} 31. d7 {[%clk 0:00:20]}  Rcd8 {[%clk 0:00:07]} 32. Nxc5 {[%clk 0:00:20]}  Kg5 {[%clk 0:00:08]} 33. Be4 {[%clk 0:00:19]}  Bg4 {[%clk 0:00:05]} 34. Rd6 {[%clk 0:00:19]}  Ne7 {[%clk 0:00:05]} 35. Ne6+ {[%clk 0:00:18]}  Bxe6 {[%clk 0:00:04]} 36. Rxe6 {[%clk 0:00:19]}  Rf7 {[%clk 0:00:03]} 37. c5 {[%clk 0:00:20]}  g6 {[%clk 0:00:02]} 38. c6 {[%clk 0:00:19]}  Nf5 {[%clk 0:00:03]} 39. Bxf5 {[%clk 0:00:19]}  Kxf5 {[%clk 0:00:03]} 40. Re8 {[%clk 0:00:19]}  Rxe8 {[%clk 0:00:03]} 41. dxe8=Q {[%clk 0:00:20]} 1-0


[Site "https://www.chess.com"]

[Event "Titled Tuesday Blitz November 01 Early 2022"]
[White "Schekachikhin, Maksim"]
[Black "Shipov, Sergei"]
[WhiteFideId "24177830"]
[BlackFideId "4113624"]
[WhiteElo "2272"]
[BlackElo "2771"]
[Result "1/2-1/2"]
[Round "10"]
[TimeControl "180+1"]
[Date "2022.11.01"]
[WhiteClock "0:00:13"]
[BlackClock "0:00:15"]

1. c4 {[%clk 0:03:00]}  Nf6 {[%clk 0:02:58]} 2. Nc3 {[%clk 0:03:00]}  c5 {[%clk 0:02:58]} 3. g3 {[%clk 0:02:58]}  e6 {[%clk 0:02:58]} 4. Bg2 {[%clk 0:02:58]}  d5 {[%clk 0:02:59]} 5. cxd5 {[%clk 0:02:55]}  exd5 {[%clk 0:02:59]} 6. d4 {[%clk 0:02:55]}  cxd4 {[%clk 0:02:59]} 7. Qxd4 {[%clk 0:02:55]}  Nc6 {[%clk 0:03:00]} 8. Qa4 {[%clk 0:02:55]}  d4 {[%clk 0:02:59]} 9. Ne4 {[%clk 0:02:37]}  Bb4+ {[%clk 0:02:58]} 10. Bd2 {[%clk 0:02:32]}  Bxd2+ {[%clk 0:02:58]} 11. Nxd2 {[%clk 0:02:33]}  O-O {[%clk 0:02:58]} 12. Nb3 {[%clk 0:02:17]}  Re8 {[%clk 0:02:55]} 13. Bxc6 {[%clk 0:02:15]}  bxc6 {[%clk 0:02:55]} 14. Qxd4 {[%clk 0:02:15]}  Qe7 {[%clk 0:02:47]} 15. e3 {[%clk 0:02:12]}  c5 {[%clk 0:02:37]} 16. Qxc5 {[%clk 0:02:03]}  Qb7 {[%clk 0:02:37]} 17. f3 {[%clk 0:01:59]}  a5 {[%clk 0:02:33]} 18. O-O-O {[%clk 0:01:44]}  Be6 {[%clk 0:02:17]} 19. Kb1 {[%clk 0:01:43]}  Bxb3 {[%clk 0:02:00]} 20. axb3 {[%clk 0:01:42]}  Qxb3 {[%clk 0:02:01]} 21. Qc2 {[%clk 0:01:42]}  Qb7 {[%clk 0:01:58]} 22. e4 {[%clk 0:01:39]}  a4 {[%clk 0:01:52]} 23. Ne2 {[%clk 0:01:38]}  a3 {[%clk 0:01:51]} 24. b3 {[%clk 0:01:38]}  Rec8 {[%clk 0:01:42]} 25. Qd3 {[%clk 0:01:35]}  h6 {[%clk 0:01:34]} 26. Ka2 {[%clk 0:01:33]}  Qb6 {[%clk 0:01:33]} 27. Rc1 {[%clk 0:01:29]}  Qf2 {[%clk 0:01:26]} 28. Rxc8+ {[%clk 0:01:17]}  Rxc8 {[%clk 0:01:26]} 29. Rd1 {[%clk 0:01:17]}  Qxh2 {[%clk 0:01:03]} 30. Kxa3 {[%clk 0:01:17]}  Qf2 {[%clk 0:01:01]} 31. Kb2 {[%clk 0:01:14]}  h5 {[%clk 0:00:59]} 32. Rd2 {[%clk 0:01:11]}  Ra8 {[%clk 0:00:55]} 33. e5 {[%clk 0:00:59]}  Qa7 {[%clk 0:00:54]} 34. Nc3 {[%clk 0:00:45]}  Ne8 {[%clk 0:00:54]} 35. Kc2 {[%clk 0:00:37]}  Nc7 {[%clk 0:00:52]} 36. Qd4 {[%clk 0:00:36]}  Qa5 {[%clk 0:00:37]} 37. f4 {[%clk 0:00:30]}  Ne6 {[%clk 0:00:36]} 38. Qa4 {[%clk 0:00:27]}  g5 {[%clk 0:00:18]} 39. Qxa5 {[%clk 0:00:21]}  Rxa5 {[%clk 0:00:17]} 40. Nd5 {[%clk 0:00:22]}  gxf4 {[%clk 0:00:16]} 41. gxf4 {[%clk 0:00:22]}  h4 {[%clk 0:00:15]} 42. Kb2 {[%clk 0:00:17]}  h3 {[%clk 0:00:12]} 43. b4 {[%clk 0:00:17]}  h2 {[%clk 0:00:10]} 44. Nf6+ {[%clk 0:00:15]}  Kg7 {[%clk 0:00:10]} 45. Rxh2 {[%clk 0:00:16]}  Rb5 {[%clk 0:00:11]} 46. Rg2+ {[%clk 0:00:16]}  Kh6 {[%clk 0:00:10]} 47. Rh2+ {[%clk 0:00:15]}  Kg6 {[%clk 0:00:10]} 48. Kc3 {[%clk 0:00:13]}  Nxf4 {[%clk 0:00:10]} 49. Kc4 {[%clk 0:00:11]}  Rxe5 {[%clk 0:00:09]} 50. Nd7 {[%clk 0:00:11]}  Re4+ {[%clk 0:00:09]} 51. Kc5 {[%clk 0:00:11]}  Nd3+ {[%clk 0:00:10]} 52. Kd5 {[%clk 0:00:10]}  Rxb4 {[%clk 0:00:10]} 53. Ne5+ {[%clk 0:00:11]}  Nxe5 {[%clk 0:00:09]} 54. Kxe5 {[%clk 0:00:12]}  f5 {[%clk 0:00:09]} 55. Rg2+ {[%clk 0:00:11]}  Rg4 {[%clk 0:00:09]} 56. Rxg4+ {[%clk 0:00:10]}  fxg4 {[%clk 0:00:09]} 57. Kf4 {[%clk 0:00:11]}  Kh5 {[%clk 0:00:09]} 58. Kg3 {[%clk 0:00:11]}  Kg5 {[%clk 0:00:09]} 59. Kg2 {[%clk 0:00:12]}  Kf4 {[%clk 0:00:10]} 60. Kf2 {[%clk 0:00:12]}  g3+ {[%clk 0:00:10]} 61. Kg2 {[%clk 0:00:12]}  Kg4 {[%clk 0:00:11]} 62. Kg1 {[%clk 0:00:13]}  Kf3 {[%clk 0:00:11]} 63. Kf1 {[%clk 0:00:13]}  Kf4 {[%clk 0:00:12]} 64. Kg2 {[%clk 0:00:13]}  Kg4 {[%clk 0:00:13]} 65. Kg1 {[%clk 0:00:13]}  Kh3 {[%clk 0:00:14]} 66. Kh1 {[%clk 0:00:13]}  Kh4 {[%clk 0:00:15]} 67. Kg2 {[%clk 0:00:13]}  Kg4 {[%clk 0:00:15]} 1/2-1/2


[Site "https://www.chess.com"]

[Event "Titled Tuesday Blitz November 01 Early 2022"]
[White "Storey, Charles H"]
[Black "Rosh Jain"]
[WhiteFideId "406686"]
[BlackFideId "25789465"]
[WhiteElo "2252"]
[BlackElo "2233"]
[Result "1-0"]
[Round "10"]
[TimeControl "180+1"]
[Date "2022.11.02"]
[WhiteClock "0:00:09"]
[BlackClock "0:00:01"]

1. d4 {[%clk 0:03:00]}  Nf6 {[%clk 0:01:51]} 2. c4 {[%clk 0:02:56]}  e6 {[%clk 0:01:50]} 3. g3 {[%clk 0:02:55]}  d5 {[%clk 0:01:51]} 4. Bg2 {[%clk 0:02:55]}  dxc4 {[%clk 0:01:50]} 5. Qa4+ {[%clk 0:02:55]}  Nc6 {[%clk 0:01:47]} 6. Bxc6+ {[%clk 0:02:53]}  bxc6 {[%clk 0:01:48]} 7. Qxc4 {[%clk 0:02:53]}  Qd5 {[%clk 0:01:45]} 8. Qxd5 {[%clk 0:02:47]}  cxd5 {[%clk 0:01:46]} 9. Nf3 {[%clk 0:02:46]}  Ba6 {[%clk 0:01:45]} 10. Bf4 {[%clk 0:02:45]}  c5 {[%clk 0:01:44]} 11. Nc3 {[%clk 0:02:40]}  cxd4 {[%clk 0:01:37]} 12. Nxd4 {[%clk 0:02:39]}  Bc5 {[%clk 0:01:35]} 13. Nb3 {[%clk 0:02:25]}  Bb6 {[%clk 0:01:34]} 14. Rd1 {[%clk 0:02:15]}  O-O {[%clk 0:01:33]} 15. Bg5 {[%clk 0:02:00]}  Ng4 {[%clk 0:01:26]} 16. O-O {[%clk 0:01:56]}  f6 {[%clk 0:01:21]} 17. Bc1 {[%clk 0:01:52]}  Rac8 {[%clk 0:01:17]} 18. h3 {[%clk 0:01:47]}  Ne5 {[%clk 0:01:17]} 19. Nd4 {[%clk 0:01:42]}  Bxd4 {[%clk 0:01:08]} 20. Rxd4 {[%clk 0:01:41]}  Nc6 {[%clk 0:01:07]} 21. Ra4 {[%clk 0:01:39]}  Bb7 {[%clk 0:01:06]} 22. Be3 {[%clk 0:01:30]}  a6 {[%clk 0:01:06]} 23. Bc5 {[%clk 0:01:29]}  Rfd8 {[%clk 0:01:05]} 24. b4 {[%clk 0:01:29]}  Ne5 {[%clk 0:00:57]} 25. Re1 {[%clk 0:01:05]}  Nd7 {[%clk 0:00:54]} 26. Ra5 {[%clk 0:00:59]}  Nb8 {[%clk 0:00:51]} 27. Ra3 {[%clk 0:00:54]}  Nc6 {[%clk 0:00:47]} 28. Na4 {[%clk 0:00:54]}  Ne5 {[%clk 0:00:43]} 29. Nb6 {[%clk 0:00:51]}  Rc6 {[%clk 0:00:38]} 30. Re3 {[%clk 0:00:50]}  Re8 {[%clk 0:00:34]} 31. f4 {[%clk 0:00:42]}  Nf7 {[%clk 0:00:19]} 32. Nxd5 {[%clk 0:00:36]}  Rxc5 {[%clk 0:00:18]} 33. Nxf6+ {[%clk 0:00:36]}  gxf6 {[%clk 0:00:17]} 34. bxc5 {[%clk 0:00:36]}  Bd5 {[%clk 0:00:18]} 35. Ra3 {[%clk 0:00:26]}  Bc4 {[%clk 0:00:18]} 36. Rc1 {[%clk 0:00:25]}  Bb5 {[%clk 0:00:18]} 37. Kf2 {[%clk 0:00:23]}  e5 {[%clk 0:00:18]} 38. Re3 {[%clk 0:00:18]}  Rc8 {[%clk 0:00:16]} 39. Rec3 {[%clk 0:00:13]}  Rc6 {[%clk 0:00:15]} 40. Ra1 {[%clk 0:00:12]}  a5 {[%clk 0:00:13]} 41. a4 {[%clk 0:00:12]}  Ba6 {[%clk 0:00:14]} 42. Rb1 {[%clk 0:00:12]}  Kf8 {[%clk 0:00:12]} 43. Rb6 {[%clk 0:00:13]}  Nd8 {[%clk 0:00:05]} 44. fxe5 {[%clk 0:00:13]}  fxe5 {[%clk 0:00:04]} 45. Re3 {[%clk 0:00:13]}  Rxb6 {[%clk 0:00:03]} 46. cxb6 {[%clk 0:00:13]}  Nc6 {[%clk 0:00:04]} 47. Rc3 {[%clk 0:00:10]}  Nd4 {[%clk 0:00:03]} 48. Rc7 {[%clk 0:00:10]}  Ne6 {[%clk 0:00:01]} 49. b7 {[%clk 0:00:09]} 1-0


[Site "https://www.chess.com"]

[Event "Titled Tuesday Blitz November 01 Early 2022"]
[White "Stribuk, Artiom"]
[Black "Salem, A.R. Saleh"]
[WhiteFideId "13515659"]
[BlackFideId "9301348"]
[WhiteElo "2279"]
[BlackElo "2628"]
[Result "0-1"]
[Round "10"]
[TimeControl "180+1"]
[Date "2022.11.01"]
[WhiteClock "0:00:15"]
[BlackClock "0:02:10"]

1. d4 {[%clk 0:02:56]}  Nf6 {[%clk 0:03:00]} 2. c4 {[%clk 0:02:54]}  e6 {[%clk 0:03:01]} 3. g3 {[%clk 0:02:54]}  c5 {[%clk 0:03:01]} 4. Nf3 {[%clk 0:02:54]}  cxd4 {[%clk 0:02:56]} 5. Nxd4 {[%clk 0:02:55]}  a6 {[%clk 0:02:56]} 6. Nc3 {[%clk 0:02:53]}  Qc7 {[%clk 0:02:56]} 7. Bg2 {[%clk 0:02:52]}  Qxc4 {[%clk 0:02:57]} 8. O-O {[%clk 0:02:52]}  Nc6 {[%clk 0:02:57]} 9. Nb3 {[%clk 0:02:19]}  Be7 {[%clk 0:02:57]} 10. Be3 {[%clk 0:02:18]}  O-O {[%clk 0:02:55]} 11. Rc1 {[%clk 0:02:19]}  Qg4 {[%clk 0:02:54]} 12. h3 {[%clk 0:02:18]}  Qh5 {[%clk 0:02:49]} 13. Na4 {[%clk 0:02:14]}  d5 {[%clk 0:02:48]} 14. Nb6 {[%clk 0:02:13]}  Rb8 {[%clk 0:02:48]} 15. Nc5 {[%clk 0:01:48]}  d4 {[%clk 0:02:47]} 16. g4 {[%clk 0:01:38]}  Qxc5 {[%clk 0:02:41]} 17. Rxc5 {[%clk 0:01:26]}  Bxc5 {[%clk 0:02:42]} 18. Bf4 {[%clk 0:01:18]}  e5 {[%clk 0:02:38]} 19. Nxc8 {[%clk 0:01:13]}  exf4 {[%clk 0:02:27]} 20. Qc2 {[%clk 0:00:59]}  Nd7 {[%clk 0:02:16]} 21. Bxc6 {[%clk 0:00:44]}  bxc6 {[%clk 0:02:17]} 22. b4 {[%clk 0:00:31]}  Rxb4 {[%clk 0:02:17]} 23. Qf5 {[%clk 0:00:31]}  Rb7 {[%clk 0:02:17]} 24. Rc1 {[%clk 0:00:30]}  g6 {[%clk 0:02:17]} 25. Qg5 {[%clk 0:00:17]}  Rxc8 {[%clk 0:02:12]} 26. Rxc5 {[%clk 0:00:17]}  Nxc5 {[%clk 0:02:13]} 27. Qxc5 {[%clk 0:00:17]}  f3 {[%clk 0:02:11]} 28. exf3 {[%clk 0:00:15]}  Rd7 {[%clk 0:02:12]} 29. Kf1 {[%clk 0:00:15]}  d3 {[%clk 0:02:10]} 0-1


[Site "https://www.chess.com"]

[Event "Titled Tuesday Blitz November 01 Early 2022"]
[White "Svane, Rasmus"]
[Black "Zemlyanskii, Ivan"]
[WhiteFideId "4657101"]
[BlackFideId "24249971"]
[WhiteElo "2674"]
[BlackElo "2107"]
[Result "1-0"]
[Round "10"]
[TimeControl "180+1"]
[Date "2022.11.01"]
[WhiteClock "0:01:06"]
[BlackClock "0:00:06"]

1. Nf3 {[%clk 0:02:59]}  Nf6 {[%clk 0:03:00]} 2. g3 {[%clk 0:02:58]}  d5 {[%clk 0:03:00]} 3. Bg2 {[%clk 0:02:59]}  c5 {[%clk 0:03:00]} 4. O-O {[%clk 0:02:59]}  e6 {[%clk 0:02:57]} 5. c4 {[%clk 0:02:59]}  d4 {[%clk 0:02:56]} 6. e3 {[%clk 0:03:00]}  Nc6 {[%clk 0:02:56]} 7. exd4 {[%clk 0:03:01]}  cxd4 {[%clk 0:02:57]} 8. d3 {[%clk 0:03:01]}  h6 {[%clk 0:02:55]} 9. Bf4 {[%clk 0:02:51]}  Bd6 {[%clk 0:02:55]} 10. Bxd6 {[%clk 0:02:48]}  Qxd6 {[%clk 0:02:55]} 11. Nbd2 {[%clk 0:02:48]}  O-O {[%clk 0:02:46]} 12. a3 {[%clk 0:02:48]}  a5 {[%clk 0:02:42]} 13. Rc1 {[%clk 0:02:49]}  e5 {[%clk 0:02:36]} 14. c5 {[%clk 0:02:49]}  Qc7 {[%clk 0:02:34]} 15. Nc4 {[%clk 0:02:49]}  Be6 {[%clk 0:02:17]} 16. Re1 {[%clk 0:02:49]}  Nd7 {[%clk 0:01:58]} 17. Qe2 {[%clk 0:02:35]}  Nxc5 {[%clk 0:01:43]} 18. Ncxe5 {[%clk 0:02:31]}  Nxe5 {[%clk 0:01:43]} 19. Nxe5 {[%clk 0:02:29]}  Qb6 {[%clk 0:01:32]} 20. Nc4 {[%clk 0:02:28]}  Qa6 {[%clk 0:01:28]} 21. b4 {[%clk 0:02:17]}  axb4 {[%clk 0:01:28]} 22. axb4 {[%clk 0:02:18]}  Na4 {[%clk 0:01:27]} 23. Qe5 {[%clk 0:02:18]}  Rfd8 {[%clk 0:01:25]} 24. b5 {[%clk 0:02:15]}  Qa7 {[%clk 0:01:22]} 25. Nd6 {[%clk 0:01:57]}  Nb2 {[%clk 0:00:55]} 26. Nf5 {[%clk 0:01:50]}  Bxf5 {[%clk 0:00:51]} 27. Qxf5 {[%clk 0:01:50]}  Qb6 {[%clk 0:00:43]} 28. Re7 {[%clk 0:01:46]}  Qg6 {[%clk 0:00:16]} 29. Qxg6 {[%clk 0:01:46]}  fxg6 {[%clk 0:00:17]} 30. Be4 {[%clk 0:01:45]}  Ra3 {[%clk 0:00:14]} 31. Rcc7 {[%clk 0:01:44]}  Nxd3 {[%clk 0:00:12]} 32. Rxg7+ {[%clk 0:01:44]}  Kh8 {[%clk 0:00:12]} 33. Rh7+ {[%clk 0:01:27]}  Kg8 {[%clk 0:00:12]} 34. Rcg7+ {[%clk 0:01:28]}  Kf8 {[%clk 0:00:12]} 35. Rxb7 {[%clk 0:01:29]}  Kg8 {[%clk 0:00:11]} 36. Rbg7+ {[%clk 0:01:20]}  Kf8 {[%clk 0:00:12]} 37. Rxg6 {[%clk 0:01:21]}  Ra1+ {[%clk 0:00:07]} 38. Kg2 {[%clk 0:01:21]}  Ne5 {[%clk 0:00:08]} 39. Rh8+ {[%clk 0:01:11]}  Ke7 {[%clk 0:00:09]} 40. Rxd8 {[%clk 0:01:06]}  Kxd8 {[%clk 0:00:10]} 41. Rd6+ {[%clk 0:01:06]}  Ke7 {[%clk 0:00:10]} 42. Rxd4 {[%clk 0:01:06]}  Nf3 {[%clk 0:00:06]} 43. Bxf3 {[%clk 0:01:06]} 1-0


[Site "https://www.chess.com"]

[Event "Titled Tuesday Blitz November 01 Early 2022"]
[White "Szente Varga, Fruzsina"]
[Black "Garv Gaur"]
[WhiteFideId "712264"]
[BlackFideId "45030839"]
[WhiteElo "1994"]
[BlackElo "1960"]
[Result "0-1"]
[Round "10"]
[TimeControl "180+1"]
[Date "2022.11.02"]
[WhiteClock "0:00:53"]
[BlackClock "0:01:14"]

1. e4 {[%clk 0:03:00]}  c6 {[%clk 0:02:57]} 2. d4 {[%clk 0:03:00]}  d5 {[%clk 0:02:58]} 3. Nc3 {[%clk 0:02:59]}  dxe4 {[%clk 0:02:56]} 4. Nxe4 {[%clk 0:03:00]}  Bf5 {[%clk 0:02:56]} 5. Ng3 {[%clk 0:03:01]}  Bg6 {[%clk 0:02:57]} 6. Bc4 {[%clk 0:03:01]}  e6 {[%clk 0:02:57]} 7. c3 {[%clk 0:03:02]}  Bd6 {[%clk 0:02:57]} 8. N1e2 {[%clk 0:03:03]}  Ne7 {[%clk 0:02:57]} 9. O-O {[%clk 0:03:03]}  Nd7 {[%clk 0:02:57]} 10. f4 {[%clk 0:03:04]}  O-O {[%clk 0:02:57]} 11. Bd3 {[%clk 0:03:04]}  Nf6 {[%clk 0:02:56]} 12. f5 {[%clk 0:03:00]}  exf5 {[%clk 0:02:52]} 13. Nxf5 {[%clk 0:03:01]}  Nxf5 {[%clk 0:02:50]} 14. Bxf5 {[%clk 0:02:59]}  Re8 {[%clk 0:02:51]} 15. Bg5 {[%clk 0:02:53]}  Qe7 {[%clk 0:02:46]} 16. Ng3 {[%clk 0:02:33]}  Bxg3 {[%clk 0:02:20]} 17. hxg3 {[%clk 0:02:34]}  Bxf5 {[%clk 0:02:19]} 18. Rxf5 {[%clk 0:02:31]}  Qd7 {[%clk 0:02:20]} 19. Qf3 {[%clk 0:01:53]}  Ne4 {[%clk 0:02:14]} 20. Rf1 {[%clk 0:01:49]}  f6 {[%clk 0:02:08]} 21. Bc1 {[%clk 0:01:40]}  Re7 {[%clk 0:02:07]} 22. g4 {[%clk 0:01:36]}  h6 {[%clk 0:01:59]} 23. Qd3 {[%clk 0:01:20]}  Rae8 {[%clk 0:01:57]} 24. d5 {[%clk 0:01:17]}  cxd5 {[%clk 0:01:50]} 25. Qxd5+ {[%clk 0:01:18]}  Qxd5 {[%clk 0:01:50]} 26. Rxd5 {[%clk 0:01:19]}  Ng3 {[%clk 0:01:49]} 27. Rfd1 {[%clk 0:01:15]}  Re2 {[%clk 0:01:39]} 28. Bf4 {[%clk 0:01:12]}  Ne4 {[%clk 0:01:33]} 29. Rb5 {[%clk 0:01:01]}  b6 {[%clk 0:01:29]} 30. Rd7 {[%clk 0:00:58]}  Nf2 {[%clk 0:01:15]} 31. Rxa7 {[%clk 0:00:54]}  Nxg4 {[%clk 0:01:15]} 32. Rxb6 {[%clk 0:00:53]}  Re1# {[%clk 0:01:14]} 0-1


[Site "https://www.chess.com"]